[Event "Titled Tuesday Blitz September 28 2021"]
[White "Mgeladze, Tamaz"]
[Black "Sokolovsky, Yahli"]
[WhiteFideId "13601202"]
[BlackFideId "2820242"]
[WhiteElo "2258"]
[BlackElo "1770"]
[Result "0-1"]
[Round "06"]
[TimeControl "180+1"]
[Date "2021.09.28"]
[WhiteClock "0:00:18"]
[BlackClock "0:00:06"]

1. c4 {[%clk 0:03:00]}  g6 {[%clk 0:02:57]} 2. Nc3 {[%clk 0:03:00]}  Bg7 {[%clk 0:02:57]} 3. g3 {[%clk 0:03:01]}  c5 {[%clk 0:02:55]} 4. Bg2 {[%clk 0:03:01]}  Nf6 {[%clk 0:02:56]} 5. Nf3 {[%clk 0:03:02]}  O-O {[%clk 0:02:57]} 6. O-O {[%clk 0:03:01]}  d6 {[%clk 0:02:57]} 7. a3 {[%clk 0:03:00]}  Nc6 {[%clk 0:02:57]} 8. Rb1 {[%clk 0:03:01]}  e5 {[%clk 0:02:55]} 9. d3 {[%clk 0:03:00]}  Be6 {[%clk 0:02:50]} 10. Bg5 {[%clk 0:02:59]}  Qd7 {[%clk 0:02:47]} 11. Bxf6 {[%clk 0:02:58]}  Bxf6 {[%clk 0:02:47]} 12. b4 {[%clk 0:02:58]}  cxb4 {[%clk 0:02:42]} 13. axb4 {[%clk 0:02:58]}  Bh3 {[%clk 0:02:42]} 14. Nd5 {[%clk 0:02:50]}  Bg7 {[%clk 0:02:39]} 15. b5 {[%clk 0:02:50]}  Bxg2 {[%clk 0:02:24]} 16. Kxg2 {[%clk 0:02:50]}  Ne7 {[%clk 0:02:22]} 17. e4 {[%clk 0:02:42]}  Nxd5 {[%clk 0:02:16]} 18. exd5 {[%clk 0:02:43]}  h6 {[%clk 0:02:10]} 19. Ra1 {[%clk 0:02:37]}  e4 {[%clk 0:02:04]} 20. dxe4 {[%clk 0:02:38]}  Bxa1 {[%clk 0:02:04]} 21. Qxa1 {[%clk 0:02:39]}  a5 {[%clk 0:01:59]} 22. e5 {[%clk 0:02:38]}  a4 {[%clk 0:01:50]} 23. Re1 {[%clk 0:02:35]}  dxe5 {[%clk 0:01:35]} 24. Nxe5 {[%clk 0:02:36]}  Qf5 {[%clk 0:01:36]} 25. c5 {[%clk 0:02:22]}  a3 {[%clk 0:01:02]} 26. d6 {[%clk 0:02:22]}  a2 {[%clk 0:01:02]} 27. c6 {[%clk 0:02:21]}  bxc6 {[%clk 0:00:59]} 28. bxc6 {[%clk 0:02:22]}  Qe6 {[%clk 0:00:52]} 29. d7 {[%clk 0:02:16]}  Qd5+ {[%clk 0:00:26]} 30. Kh3 {[%clk 0:02:16]}  f6 {[%clk 0:00:23]} 31. Ng4 {[%clk 0:02:07]}  Qh5+ {[%clk 0:00:21]} 32. Kg2 {[%clk 0:02:07]}  Qxg4 {[%clk 0:00:22]} 33. Re7 {[%clk 0:02:03]}  Qc4 {[%clk 0:00:19]} 34. c7 {[%clk 0:01:41]}  Qxc7 {[%clk 0:00:18]} 35. h4 {[%clk 0:01:33]}  Qd6 {[%clk 0:00:17]} 36. Re2 {[%clk 0:01:23]}  Qxd7 {[%clk 0:00:17]} 37. Kh2 {[%clk 0:01:18]}  Qd5 {[%clk 0:00:17]} 38. Re7 {[%clk 0:01:14]}  Qf3 {[%clk 0:00:11]} 39. Kh3 {[%clk 0:00:57]}  Rfb8 {[%clk 0:00:07]} 40. Re3 {[%clk 0:00:48]}  Qf5+ {[%clk 0:00:07]} 41. g4 {[%clk 0:00:49]}  Qf4 {[%clk 0:00:06]} 42. Re7 {[%clk 0:00:20]}  Rb3+ {[%clk 0:00:05]} 43. Kg2 {[%clk 0:00:20]}  Qxg4+ {[%clk 0:00:06]} 44. Kh2 {[%clk 0:00:18]}  Rh3# {[%clk 0:00:06]} 0-1


[Site "https://www.chess.com"]

[Event "Titled Tuesday Blitz September 28 2021"]
[White "Parkhov, Yair"]
[Black "Odegov, Artem"]
[WhiteFideId "2813408"]
[BlackFideId "34183644"]
[WhiteElo "2131"]
[BlackElo "2257"]
[Result "0-1"]
[Round "06"]
[TimeControl "180+1"]
[Date "2021.09.28"]
[WhiteClock "0:01:02"]
[BlackClock "0:01:02"]

1. c4 {[%clk 0:03:00]}  Nf6 {[%clk 0:02:55]} 2. g3 {[%clk 0:02:57]}  g6 {[%clk 0:02:55]} 3. Bg2 {[%clk 0:02:58]}  Bg7 {[%clk 0:02:55]} 4. d4 {[%clk 0:02:58]}  O-O {[%clk 0:02:56]} 5. Nc3 {[%clk 0:02:56]}  c5 {[%clk 0:02:56]} 6. dxc5 {[%clk 0:02:55]}  Nc6 {[%clk 0:02:54]} 7. Nf3 {[%clk 0:02:36]}  Qa5 {[%clk 0:02:52]} 8. O-O {[%clk 0:02:32]}  Qxc5 {[%clk 0:02:34]} 9. Qa4 {[%clk 0:02:26]}  d6 {[%clk 0:02:25]} 10. Be3 {[%clk 0:02:23]}  Qh5 {[%clk 0:02:25]} 11. Rfd1 {[%clk 0:02:18]}  Bh3 {[%clk 0:02:22]} 12. Nd5 {[%clk 0:02:09]}  Bxg2 {[%clk 0:02:17]} 13. Kxg2 {[%clk 0:02:07]}  Ng4 {[%clk 0:02:04]} 14. Bg5 {[%clk 0:02:01]}  e5 {[%clk 0:01:30]} 15. h3 {[%clk 0:01:56]}  e4 {[%clk 0:01:29]} 16. Nf6+ {[%clk 0:01:15]}  Bxf6 {[%clk 0:01:12]} 17. Rd5 {[%clk 0:01:08]}  exf3+ {[%clk 0:01:07]} 18. exf3 {[%clk 0:01:02]}  Nge5 {[%clk 0:01:02]} 0-1


[Site "https://www.chess.com"]

[Event "Titled Tuesday Blitz September 28 2021"]
[White "Quintiliano Pinto, Renato R."]
[Black "Milchev, Nikolay"]
[WhiteFideId "2117568"]
[BlackFideId "2906090"]
[WhiteElo "2439"]
[BlackElo "2449"]
[Result "1-0"]
[Round "06"]
[TimeControl "180+1"]
[Date "2021.09.28"]
[WhiteClock "0:01:43"]
[BlackClock "0:01:56"]

1. d4 {[%clk 0:02:49]}  Nf6 {[%clk 0:02:59]} 2. Nf3 {[%clk 0:02:48]}  g6 {[%clk 0:02:59]} 3. c4 {[%clk 0:02:48]}  Bg7 {[%clk 0:02:59]} 4. Nc3 {[%clk 0:02:48]}  O-O {[%clk 0:03:00]} 5. e4 {[%clk 0:02:48]}  d6 {[%clk 0:03:01]} 6. Be2 {[%clk 0:02:48]}  c5 {[%clk 0:03:01]} 7. O-O {[%clk 0:02:48]}  Bg4 {[%clk 0:03:01]} 8. d5 {[%clk 0:02:45]}  b5 {[%clk 0:03:01]} 9. cxb5 {[%clk 0:02:43]}  a6 {[%clk 0:03:01]} 10. bxa6 {[%clk 0:02:42]}  Bxf3 {[%clk 0:03:01]} 11. Bxf3 {[%clk 0:02:42]}  Nxa6 {[%clk 0:03:02]} 12. Bg5 {[%clk 0:02:36]}  Qb6 {[%clk 0:03:01]} 13. Qd2 {[%clk 0:02:34]}  Rfb8 {[%clk 0:03:01]} 14. Rab1 {[%clk 0:02:33]}  Nc7 {[%clk 0:02:55]} 15. Be2 {[%clk 0:02:04]}  Qb4 {[%clk 0:02:53]} 16. a3 {[%clk 0:01:50]}  Qd4 {[%clk 0:02:52]} 17. Qc2 {[%clk 0:01:46]}  c4 {[%clk 0:01:56]} 18. Be3 {[%clk 0:01:43]}  Qxe4 {[%clk 0:01:56]} 1-0


[Site "https://www.chess.com"]

[Event "Titled Tuesday Blitz September 28 2021"]
[White "Quispe Arteaga, Gabriel"]
[Black "Holt, Conrad"]
[WhiteFideId "32059809"]
[BlackFideId "2034387"]
[WhiteElo "2192"]
[BlackElo "2586"]
[Result "0-1"]
[Round "06"]
[TimeControl "180+1"]
[Date "2021.09.28"]
[WhiteClock "0:00:03"]
[BlackClock "0:00:08"]

1. c4 {[%clk 0:02:09]}  c6 {[%clk 0:02:55]} 2. Nf3 {[%clk 0:02:07]}  d5 {[%clk 0:02:55]} 3. e3 {[%clk 0:02:08]}  Nf6 {[%clk 0:02:54]} 4. Nc3 {[%clk 0:02:01]}  Nbd7 {[%clk 0:02:41]} 5. d4 {[%clk 0:01:59]}  e6 {[%clk 0:02:41]} 6. Qc2 {[%clk 0:01:57]}  b6 {[%clk 0:02:40]} 7. b3 {[%clk 0:01:56]}  Bb7 {[%clk 0:02:39]} 8. Bb2 {[%clk 0:01:57]}  Be7 {[%clk 0:02:38]} 9. Bd3 {[%clk 0:01:57]}  O-O {[%clk 0:02:35]} 10. O-O {[%clk 0:01:58]}  c5 {[%clk 0:02:31]} 11. cxd5 {[%clk 0:01:58]}  exd5 {[%clk 0:02:31]} 12. Rac1 {[%clk 0:01:50]}  Rc8 {[%clk 0:02:30]} 13. Qb1 {[%clk 0:01:50]}  a6 {[%clk 0:02:20]} 14. Ne5 {[%clk 0:01:40]}  g6 {[%clk 0:02:12]} 15. Rfd1 {[%clk 0:01:34]}  cxd4 {[%clk 0:02:09]} 16. exd4 {[%clk 0:01:32]}  Bd6 {[%clk 0:02:09]} 17. Ne2 {[%clk 0:01:28]}  Re8 {[%clk 0:02:03]} 18. Rxc8 {[%clk 0:01:24]}  Bxc8 {[%clk 0:02:01]} 19. f4 {[%clk 0:01:10]}  Bb7 {[%clk 0:01:48]} 20. Ng3 {[%clk 0:01:03]}  Nf8 {[%clk 0:01:36]} 21. Rf1 {[%clk 0:01:00]}  N6d7 {[%clk 0:01:33]} 22. f5 {[%clk 0:00:58]}  Nxe5 {[%clk 0:01:31]} 23. dxe5 {[%clk 0:00:56]}  Bxe5 {[%clk 0:01:32]} 24. fxg6 {[%clk 0:00:55]}  hxg6 {[%clk 0:01:29]} 25. Bxe5 {[%clk 0:00:44]}  Rxe5 {[%clk 0:01:26]} 26. Qb2 {[%clk 0:00:45]}  d4 {[%clk 0:01:21]} 27. Qf2 {[%clk 0:00:42]}  f5 {[%clk 0:01:17]} 28. Bc4+ {[%clk 0:00:29]}  Kg7 {[%clk 0:01:12]} 29. Qf4 {[%clk 0:00:29]}  Rc5 {[%clk 0:00:59]} 30. h4 {[%clk 0:00:13]}  b5 {[%clk 0:00:55]} 31. Bd3 {[%clk 0:00:12]}  Ne6 {[%clk 0:00:54]} 32. Qf2 {[%clk 0:00:12]}  f4 {[%clk 0:00:30]} 33. Ne4 {[%clk 0:00:12]}  Rh5 {[%clk 0:00:22]} 34. Re1 {[%clk 0:00:07]}  Bd5 {[%clk 0:00:17]} 35. Ng5 {[%clk 0:00:03]}  Nxg5 {[%clk 0:00:11]} 36. Qxd4+ {[%clk 0:00:03]}  Kh7 {[%clk 0:00:10]} 37. hxg5 {[%clk 0:00:04]}  Qxg5 {[%clk 0:00:10]} 38. Re2 {[%clk 0:00:04]}  f3 {[%clk 0:00:10]} 39. Rf2 {[%clk 0:00:04]}  Qc1+ {[%clk 0:00:09]} 40. Rf1 {[%clk 0:00:03]}  Qg5 {[%clk 0:00:09]} 41. Rf2 {[%clk 0:00:03]}  Qh6 {[%clk 0:00:08]} 0-1


[Site "https://www.chess.com"]

[Event "Titled Tuesday Blitz September 28 2021"]
[White "Riehle, Marco"]
[Black "Hansen, Eric"]
[WhiteFideId "12904392"]
[BlackFideId "2606771"]
[WhiteElo "2462"]
[BlackElo "2568"]
[Result "0-1"]
[Round "06"]
[TimeControl "180+1"]
[Date "2021.09.28"]
[WhiteClock "0:00:24"]
[BlackClock "0:00:12"]

1. e4 {[%clk 0:03:00]}  c5 {[%clk 0:02:58]} 2. a3 {[%clk 0:03:00]}  d5 {[%clk 0:02:56]} 3. exd5 {[%clk 0:03:00]}  Qxd5 {[%clk 0:02:56]} 4. Nc3 {[%clk 0:03:00]}  Qd8 {[%clk 0:02:45]} 5. Nf3 {[%clk 0:03:01]}  Nf6 {[%clk 0:02:44]} 6. d4 {[%clk 0:02:59]}  e6 {[%clk 0:02:44]} 7. Bb5+ {[%clk 0:02:57]}  Bd7 {[%clk 0:02:44]} 8. Bxd7+ {[%clk 0:02:56]}  Qxd7 {[%clk 0:02:39]} 9. O-O {[%clk 0:02:54]}  Nc6 {[%clk 0:02:39]} 10. dxc5 {[%clk 0:02:31]}  Qxd1 {[%clk 0:02:38]} 11. Rxd1 {[%clk 0:02:32]}  Bxc5 {[%clk 0:02:39]} 12. Bg5 {[%clk 0:02:31]}  a6 {[%clk 0:02:24]} 13. Bxf6 {[%clk 0:02:28]}  gxf6 {[%clk 0:02:25]} 14. Ne4 {[%clk 0:02:28]}  Be7 {[%clk 0:02:25]} 15. Nd6+ {[%clk 0:02:26]}  Bxd6 {[%clk 0:02:23]} 16. Rxd6 {[%clk 0:02:27]}  Ke7 {[%clk 0:02:24]} 17. Rad1 {[%clk 0:02:27]}  Rhd8 {[%clk 0:02:24]} 18. Rxd8 {[%clk 0:02:27]}  Nxd8 {[%clk 0:02:25]} 19. Kf1 {[%clk 0:02:24]}  Rc8 {[%clk 0:02:25]} 20. c3 {[%clk 0:02:24]}  b5 {[%clk 0:02:25]} 21. Ke2 {[%clk 0:02:23]}  Nb7 {[%clk 0:02:25]} 22. Rd4 {[%clk 0:02:14]}  h5 {[%clk 0:02:17]} 23. Rh4 {[%clk 0:02:07]}  Rc5 {[%clk 0:02:17]} 24. Nd2 {[%clk 0:02:00]}  Nd6 {[%clk 0:02:17]} 25. Ne4 {[%clk 0:01:54]}  Re5 {[%clk 0:02:17]} 26. Kd3 {[%clk 0:01:53]}  Nc4 {[%clk 0:02:04]} 27. b3 {[%clk 0:01:47]}  Rd5+ {[%clk 0:02:02]} 28. Ke2 {[%clk 0:01:42]}  Nxa3 {[%clk 0:01:53]} 29. Ng3 {[%clk 0:01:42]}  Nb1 {[%clk 0:01:51]} 30. c4 {[%clk 0:01:42]}  Nc3+ {[%clk 0:01:48]} 31. Ke3 {[%clk 0:01:38]}  Re5+ {[%clk 0:01:31]} 32. Kd3 {[%clk 0:01:36]}  Nd1 {[%clk 0:01:23]} 33. f4 {[%clk 0:01:28]}  Nf2+ {[%clk 0:01:23]} 34. Kc2 {[%clk 0:01:19]}  Re3 {[%clk 0:01:15]} 35. cxb5 {[%clk 0:01:17]}  axb5 {[%clk 0:01:15]} 36. Rxh5 {[%clk 0:01:17]}  b4 {[%clk 0:01:15]} 37. Rc5 {[%clk 0:01:10]}  Ng4 {[%clk 0:01:09]} 38. Nf1 {[%clk 0:01:04]}  Re2+ {[%clk 0:01:07]} 39. Kd3 {[%clk 0:01:01]}  Rxg2 {[%clk 0:01:07]} 40. Rc4 {[%clk 0:00:58]}  Rf2 {[%clk 0:01:03]} 41. Nd2 {[%clk 0:00:55]}  Nxh2 {[%clk 0:00:55]} 42. Rxb4 {[%clk 0:00:54]}  f5 {[%clk 0:00:53]} 43. Rc4 {[%clk 0:00:50]}  Nf3 {[%clk 0:00:44]} 44. Nxf3 {[%clk 0:00:50]}  Rxf3+ {[%clk 0:00:44]} 45. Kc2 {[%clk 0:00:51]}  Kd6 {[%clk 0:00:44]} 46. b4 {[%clk 0:00:50]}  Kd5 {[%clk 0:00:32]} 47. Rc5+ {[%clk 0:00:51]}  Kd4 {[%clk 0:00:32]} 48. Rc8 {[%clk 0:00:43]}  Ra3 {[%clk 0:00:20]} 49. Kb2 {[%clk 0:00:40]}  Ra7 {[%clk 0:00:20]} 50. Kb3 {[%clk 0:00:39]}  Ke3 {[%clk 0:00:16]} 51. Rc4 {[%clk 0:00:39]}  f6 {[%clk 0:00:16]} 52. Rc6 {[%clk 0:00:37]}  Re7 {[%clk 0:00:15]} 53. b5 {[%clk 0:00:31]}  Kxf4 {[%clk 0:00:15]} 54. b6 {[%clk 0:00:31]}  e5 {[%clk 0:00:14]} 55. Rc7 {[%clk 0:00:28]}  Re6 {[%clk 0:00:14]} 56. b7 {[%clk 0:00:29]}  Rb6+ {[%clk 0:00:14]} 57. Kc4 {[%clk 0:00:26]}  Ke3 {[%clk 0:00:13]} 58. Kc5 {[%clk 0:00:27]}  Rb1 {[%clk 0:00:13]} 59. Kc6 {[%clk 0:00:26]}  f4 {[%clk 0:00:12]} 60. Kd7 {[%clk 0:00:27]}  f3 {[%clk 0:00:11]} 61. Kc8 {[%clk 0:00:27]}  f2 {[%clk 0:00:10]} 62. b8=Q {[%clk 0:00:28]}  Rxb8+ {[%clk 0:00:10]} 63. Kxb8 {[%clk 0:00:28]}  f1=Q {[%clk 0:00:11]} 64. Kb7 {[%clk 0:00:26]}  Qb5+ {[%clk 0:00:11]} 65. Kc8 {[%clk 0:00:27]}  e4 {[%clk 0:00:11]} 66. Kd8 {[%clk 0:00:24]}  Qa5 {[%clk 0:00:11]} 67. Kc8 {[%clk 0:00:24]}  Qxc7+ {[%clk 0:00:12]} 68. Kxc7 {[%clk 0:00:24]}  f5 {[%clk 0:00:12]} 0-1


[Site "https://www.chess.com"]

[Event "Titled Tuesday Blitz September 28 2021"]
[White "Rozman, Levy"]
[Black "Estrada Nieto, Julian"]
[WhiteFideId "2039877"]
[BlackFideId "5101018"]
[WhiteElo "2376"]
[BlackElo "2270"]
[Result "1-0"]
[Round "06"]
[TimeControl "180+1"]
[Date "2021.09.28"]
[WhiteClock "0:00:16"]
[BlackClock "0:00:02"]

1. d4 {[%clk 0:02:57]}  d5 {[%clk 0:02:59]} 2. c4 {[%clk 0:02:50]}  dxc4 {[%clk 0:03:00]} 3. e4 {[%clk 0:02:49]}  e5 {[%clk 0:02:59]} 4. Nf3 {[%clk 0:02:48]}  exd4 {[%clk 0:03:00]} 5. Bxc4 {[%clk 0:02:48]}  Nc6 {[%clk 0:03:00]} 6. O-O {[%clk 0:02:46]}  Be6 {[%clk 0:03:00]} 7. Bxe6 {[%clk 0:02:34]}  fxe6 {[%clk 0:03:00]} 8. Qb3 {[%clk 0:02:32]}  Qd7 {[%clk 0:03:00]} 9. Na3 {[%clk 0:02:26]}  Bxa3 {[%clk 0:02:50]} 10. Qxa3 {[%clk 0:02:21]}  Nf6 {[%clk 0:02:47]} 11. e5 {[%clk 0:02:20]}  Nd5 {[%clk 0:02:43]} 12. Bg5 {[%clk 0:02:04]}  h6 {[%clk 0:02:42]} 13. Bh4 {[%clk 0:02:04]}  g5 {[%clk 0:02:02]} 14. Bg3 {[%clk 0:02:04]}  O-O-O {[%clk 0:02:02]} 15. Rfd1 {[%clk 0:02:01]}  Nf4 {[%clk 0:01:48]} 16. Bxf4 {[%clk 0:01:56]}  gxf4 {[%clk 0:01:47]} 17. Rac1 {[%clk 0:01:56]}  Kb8 {[%clk 0:01:44]} 18. b4 {[%clk 0:01:54]}  a6 {[%clk 0:01:24]} 19. b5 {[%clk 0:01:39]}  axb5 {[%clk 0:01:23]} 20. Qd3 {[%clk 0:01:38]}  Qd5 {[%clk 0:01:08]} 21. Rb1 {[%clk 0:01:39]}  b4 {[%clk 0:00:57]} 22. a3 {[%clk 0:01:38]}  Rhg8 {[%clk 0:00:53]} 23. Re1 {[%clk 0:01:34]}  bxa3 {[%clk 0:00:43]} 24. Rb5 {[%clk 0:01:34]}  Qa2 {[%clk 0:00:17]} 25. h3 {[%clk 0:01:33]}  Rd5 {[%clk 0:00:15]} 26. Re2 {[%clk 0:01:29]}  Qa1+ {[%clk 0:00:11]} 27. Rb1 {[%clk 0:01:30]}  Qc3 {[%clk 0:00:10]} 28. Qh7 {[%clk 0:01:21]}  Rdd8 {[%clk 0:00:05]} 29. Qe4 {[%clk 0:01:17]}  d3 {[%clk 0:00:05]} 30. Ree1 {[%clk 0:01:17]}  d2 {[%clk 0:00:04]} 31. Red1 {[%clk 0:01:17]}  Qd3 {[%clk 0:00:04]} 32. Qxc6 {[%clk 0:01:15]}  b6 {[%clk 0:00:05]} 33. Qxe6 {[%clk 0:01:03]}  a2 {[%clk 0:00:04]} 34. Qxa2 {[%clk 0:01:02]}  Qxf3 {[%clk 0:00:04]} 35. Kf1 {[%clk 0:00:31]}  Qxg2+ {[%clk 0:00:04]} 36. Ke2 {[%clk 0:00:32]}  Qe4+ {[%clk 0:00:04]} 37. Kf1 {[%clk 0:00:33]}  Qh1+ {[%clk 0:00:04]} 38. Ke2 {[%clk 0:00:33]}  Qe4+ {[%clk 0:00:04]} 39. Kf1 {[%clk 0:00:33]}  f3 {[%clk 0:00:02]} 40. Qa6 {[%clk 0:00:16]} 1-0


[Site "https://www.chess.com"]

[Event "Titled Tuesday Blitz September 28 2021"]
[White "Sadhwani, Raunak"]
[Black "Kiselev, Vitaliy"]
[WhiteFideId "35093487"]
[BlackFideId "4194128"]
[WhiteElo "2517"]
[BlackElo "2444"]
[Result "1-0"]
[Round "06"]
[TimeControl "180+1"]
[Date "2021.09.28"]
[WhiteClock "0:00:05"]
[BlackClock "0:00:13"]

1. d4 {[%clk 0:03:00]}  Nf6 {[%clk 0:02:59]} 2. Nf3 {[%clk 0:03:01]}  g6 {[%clk 0:02:59]} 3. Nc3 {[%clk 0:03:01]}  d5 {[%clk 0:02:59]} 4. Bf4 {[%clk 0:03:02]}  Bg7 {[%clk 0:02:58]} 5. Nb5 {[%clk 0:03:02]}  Na6 {[%clk 0:02:58]} 6. e3 {[%clk 0:03:03]}  O-O {[%clk 0:02:58]} 7. Be2 {[%clk 0:03:03]}  Ne4 {[%clk 0:02:53]} 8. O-O {[%clk 0:03:02]}  c6 {[%clk 0:02:38]} 9. Na3 {[%clk 0:03:00]}  Qb6 {[%clk 0:02:33]} 10. Qc1 {[%clk 0:02:57]}  Bg4 {[%clk 0:02:29]} 11. h3 {[%clk 0:02:55]}  Bxf3 {[%clk 0:02:27]} 12. Bxf3 {[%clk 0:02:56]}  f5 {[%clk 0:02:23]} 13. c4 {[%clk 0:02:56]}  c5 {[%clk 0:02:15]} 14. cxd5 {[%clk 0:02:05]}  cxd4 {[%clk 0:02:14]} 15. Nc4 {[%clk 0:02:06]}  Qc5 {[%clk 0:02:07]} 16. d6 {[%clk 0:02:06]}  Rac8 {[%clk 0:01:46]} 17. d7 {[%clk 0:01:34]}  Rcd8 {[%clk 0:01:45]} 18. Bxe4 {[%clk 0:00:59]}  fxe4 {[%clk 0:01:42]} 19. Nd2 {[%clk 0:00:58]}  Qxc1 {[%clk 0:01:17]} 20. Raxc1 {[%clk 0:00:59]}  Rxd7 {[%clk 0:01:16]} 21. Nxe4 {[%clk 0:00:57]}  d3 {[%clk 0:01:13]} 22. b3 {[%clk 0:00:45]}  Bb2 {[%clk 0:01:11]} 23. Rb1 {[%clk 0:00:40]}  Ba3 {[%clk 0:01:05]} 24. Rfd1 {[%clk 0:00:25]}  Rc8 {[%clk 0:01:04]} 25. Rd2 {[%clk 0:00:21]}  Nc5 {[%clk 0:00:59]} 26. Nxc5 {[%clk 0:00:19]}  Rxc5 {[%clk 0:00:58]} 27. Rbd1 {[%clk 0:00:18]}  e5 {[%clk 0:00:49]} 28. Bxe5 {[%clk 0:00:10]}  Rxe5 {[%clk 0:00:49]} 29. Rxd3 {[%clk 0:00:11]}  Rxd3 {[%clk 0:00:49]} 30. Rxd3 {[%clk 0:00:12]}  Kf7 {[%clk 0:00:48]} 31. g3 {[%clk 0:00:11]}  a5 {[%clk 0:00:44]} 32. Kg2 {[%clk 0:00:11]}  b5 {[%clk 0:00:43]} 33. Rd7+ {[%clk 0:00:09]}  Re7 {[%clk 0:00:42]} 34. Rd5 {[%clk 0:00:09]}  Rb7 {[%clk 0:00:42]} 35. f4 {[%clk 0:00:09]}  Be7 {[%clk 0:00:43]} 36. Kf3 {[%clk 0:00:09]}  a4 {[%clk 0:00:43]} 37. e4 {[%clk 0:00:09]}  a3 {[%clk 0:00:42]} 38. e5 {[%clk 0:00:09]}  b4 {[%clk 0:00:43]} 39. Rd2 {[%clk 0:00:08]}  Rc7 {[%clk 0:00:41]} 40. Ke4 {[%clk 0:00:07]}  Rc3 {[%clk 0:00:40]} 41. g4 {[%clk 0:00:07]}  Rxh3 {[%clk 0:00:40]} 42. f5 {[%clk 0:00:07]}  gxf5+ {[%clk 0:00:41]} 43. gxf5 {[%clk 0:00:08]}  Rh4+ {[%clk 0:00:40]} 44. Kd5 {[%clk 0:00:08]}  Rf4 {[%clk 0:00:36]} 45. Rh2 {[%clk 0:00:08]}  Rxf5 {[%clk 0:00:35]} 46. Rxh7+ {[%clk 0:00:08]}  Kf8 {[%clk 0:00:29]} 47. Ke6 {[%clk 0:00:08]}  Rf2 {[%clk 0:00:29]} 48. Rxe7 {[%clk 0:00:07]}  Rxa2 {[%clk 0:00:29]} 49. Rb7 {[%clk 0:00:05]}  Rh2 {[%clk 0:00:24]} 50. Rb8+ {[%clk 0:00:03]}  Kg7 {[%clk 0:00:23]} 51. Rb7+ {[%clk 0:00:04]}  Kf8 {[%clk 0:00:23]} 52. Rxb4 {[%clk 0:00:03]}  Rh6+ {[%clk 0:00:23]} 53. Kd7 {[%clk 0:00:04]}  Ra6 {[%clk 0:00:23]} 54. Rf4+ {[%clk 0:00:03]}  Kg7 {[%clk 0:00:22]} 55. Rf1 {[%clk 0:00:04]}  a2 {[%clk 0:00:21]} 56. Ra1 {[%clk 0:00:04]}  Kf7 {[%clk 0:00:21]} 57. e6+ {[%clk 0:00:04]}  Rxe6 {[%clk 0:00:18]} 58. Rxa2 {[%clk 0:00:04]}  Rb6 {[%clk 0:00:18]} 59. Rb2 {[%clk 0:00:04]}  Kf6 {[%clk 0:00:16]} 60. b4 {[%clk 0:00:04]}  Ke5 {[%clk 0:00:14]} 61. Kc7 {[%clk 0:00:04]}  Rh6 {[%clk 0:00:14]} 62. b5 {[%clk 0:00:04]}  Kd5 {[%clk 0:00:13]} 63. b6 {[%clk 0:00:04]}  Rh7+ {[%clk 0:00:13]} 64. Kb8 {[%clk 0:00:05]} 1-0


[Site "https://www.chess.com"]

[Event "Titled Tuesday Blitz September 28 2021"]
[White "Samadov, Read"]
[Black "Karttunen, Mika"]
[WhiteFideId "13417444"]
[BlackFideId "502081"]
[WhiteElo "2084"]
[BlackElo "2343"]
[Result "1-0"]
[Round "06"]
[TimeControl "180+1"]
[Date "2021.09.28"]
[WhiteClock "0:00:12"]
[BlackClock "0:00:03"]

1. d4 {[%clk 0:03:00]}  Nf6 {[%clk 0:02:59]} 2. c4 {[%clk 0:03:00]}  g6 {[%clk 0:02:57]} 3. Nc3 {[%clk 0:02:59]}  d5 {[%clk 0:02:57]} 4. cxd5 {[%clk 0:02:59]}  Nxd5 {[%clk 0:02:57]} 5. e4 {[%clk 0:02:59]}  Nxc3 {[%clk 0:02:58]} 6. bxc3 {[%clk 0:03:00]}  Bg7 {[%clk 0:02:58]} 7. Bc4 {[%clk 0:03:00]}  O-O {[%clk 0:02:58]} 8. Ne2 {[%clk 0:03:01]}  c5 {[%clk 0:02:58]} 9. Be3 {[%clk 0:03:00]}  Nc6 {[%clk 0:02:56]} 10. O-O {[%clk 0:03:00]}  Na5 {[%clk 0:02:55]} 11. Bd3 {[%clk 0:02:59]}  b6 {[%clk 0:02:50]} 12. Qd2 {[%clk 0:02:58]}  Bb7 {[%clk 0:02:06]} 13. h4 {[%clk 0:02:58]}  e5 {[%clk 0:01:59]} 14. Bg5 {[%clk 0:02:50]}  f6 {[%clk 0:01:47]} 15. Bh6 {[%clk 0:02:50]}  exd4 {[%clk 0:01:34]} 16. cxd4 {[%clk 0:02:49]}  cxd4 {[%clk 0:01:34]} 17. Bxg7 {[%clk 0:02:49]}  Kxg7 {[%clk 0:01:33]} 18. h5 {[%clk 0:02:50]}  Rc8 {[%clk 0:01:23]} 19. Rac1 {[%clk 0:02:43]}  Qd6 {[%clk 0:01:18]} 20. f4 {[%clk 0:02:38]}  Rxc1 {[%clk 0:01:09]} 21. Rxc1 {[%clk 0:02:36]}  Rc8 {[%clk 0:01:09]} 22. h6+ {[%clk 0:02:05]}  Kxh6 {[%clk 0:01:01]} 23. Rxc8 {[%clk 0:02:03]}  Bxc8 {[%clk 0:01:00]} 24. e5 {[%clk 0:02:04]}  Qd8 {[%clk 0:00:55]} 25. f5+ {[%clk 0:01:51]}  Kg7 {[%clk 0:00:54]} 26. e6 {[%clk 0:01:51]}  Nc6 {[%clk 0:00:49]} 27. Nf4 {[%clk 0:01:46]}  Ne7 {[%clk 0:00:47]} 28. g4 {[%clk 0:01:35]}  Qd6 {[%clk 0:00:35]} 29. Qf2 {[%clk 0:01:11]}  Bb7 {[%clk 0:00:32]} 30. g5 {[%clk 0:00:43]}  Qe5 {[%clk 0:00:32]} 31. gxf6+ {[%clk 0:00:32]}  Qxf6 {[%clk 0:00:31]} 32. fxg6 {[%clk 0:00:28]}  hxg6 {[%clk 0:00:22]} 33. Qg3 {[%clk 0:00:28]}  Qe5 {[%clk 0:00:11]} 34. Qh4 {[%clk 0:00:27]}  Qe3+ {[%clk 0:00:09]} 35. Kf1 {[%clk 0:00:27]}  Qc1+ {[%clk 0:00:07]} 36. Ke2 {[%clk 0:00:25]}  Qb2+ {[%clk 0:00:05]} 37. Kf1 {[%clk 0:00:21]}  Qc1+ {[%clk 0:00:05]} 38. Ke2 {[%clk 0:00:18]}  Qe3+ {[%clk 0:00:05]} 39. Kd1 {[%clk 0:00:17]}  Bf3+ {[%clk 0:00:05]} 40. Kc2 {[%clk 0:00:17]}  Nf5 {[%clk 0:00:03]} 41. Bxf5 {[%clk 0:00:16]}  Qc3+ {[%clk 0:00:03]} 42. Kb1 {[%clk 0:00:16]}  Qb4+ {[%clk 0:00:02]} 43. Kc1 {[%clk 0:00:16]}  Qc3+ {[%clk 0:00:02]} 44. Bc2 {[%clk 0:00:16]}  Qe3+ {[%clk 0:00:03]} 45. Kb1 {[%clk 0:00:14]}  Qg1+ {[%clk 0:00:02]} 46. Kb2 {[%clk 0:00:14]}  g5 {[%clk 0:00:02]} 47. Qh7+ {[%clk 0:00:13]}  Kf6 {[%clk 0:00:02]} 48. Qf7+ {[%clk 0:00:13]}  Ke5 {[%clk 0:00:03]} 49. Nd3+ {[%clk 0:00:13]}  Kd6 {[%clk 0:00:03]} 50. Qd7# {[%clk 0:00:12]} 1-0


[Site "https://www.chess.com"]